Cogmind - Beta 14 @@@ ROGUE MODE // 2024.10.16 @ 04:45:52 Player: Cereal Killer Result: Destroyed by as-33251 with Assembled Blade Performance ------------- Evolutions (0) 0 Regions Visited (2) 400 Robots Destroyed (1) 5 Value Destroyed (16) 16 Prototype IDs (2) 40 Alien Tech Used (0) 0 Bonus (0) 0 TOTAL SCORE: 461 Bonus ------- None Cogmind --------- Core Integrity 0/250 Matter 273/300 Energy 65/125 System Corruption 5% Temperature Warm (104) Movement Treading (160) Location -10/Mines Parts ------- > --- POWER (1) -------- Light Ion Engine > --- PROPULSION (2) --- Light Treads > --- UTILITY (2) ------ Seismic Detector > --- WEAPON (2) ------- Small Laser > --- INVENTORY (5) ---- Small Storage Unit Peak State ------------ > --- POWER ------------ Ion Engine > --- PROPULSION ------- Wheel Wheel > --- UTILITY ---------- Small Storage Unit Seismic Detector > --- WEAPON ----------- Medium Laser Small Laser > --- INVENTORY -------- Light Ion Engine Light Treads Compact Wheel Small Storage Unit Small Laser Mining Laser [Rating: 7] Favorites ----------- Power Ion Engine Engine Ion Engine Propulsion Wheel Treads Light Treads Wheel Wheel Utility Small Storage Unit Device Seismic Detector Storage Small Storage Unit Weapon Small Laser Energy Gun Small Laser Special Weapon Mining Laser Build | -11 -10 -10 ------- Run | Yrd Mat Min Slots Evolved . | . . . Power . | . . . Propulsion . | . . . Utility . | . . . Weapon . | . . . Parts Attached 12 | 6 . 6 Power 2 | 1 . 1 Engine 2 | 1 . 1 Core . | . . . Reactor . | . . . Propulsion 4 | 2 . 2 Treads 1 | . . 1 Leg . | . . . Wheel 3 | 2 . 1 Hover . | . . . Flight . | . . . Utility 2 | 1 . 1 Device 1 | . . 1 Storage 1 | 1 . . Processor . | . . . Hackware . | . . . Protection . | . . . Artifact . | . . . Weapon 4 | 2 . 2 Energy Gun 3 | 2 . 1 Energy Cannon . | . . . Ballistic Gun . | . . . Ballistic Cannon . | . . . Launcher . | . . . Special Weapon 1 | . . 1 Impact Weapon . | . . . Slashing Weapon . | . . . Piercing Weapon . | . . . Special Melee Weapon . | . . . Unidentified Prototypes . | . . . Parts Lost 8 | . . 8 Power 1 | . . 1 Propulsion 3 | . . 3 Utility 1 | . . 1 Weapon 3 | . . 3 Highest Loss Streak 8 | . . 8 To Critical Strikes . | . . . Average Slot Usage (%) 83 | . 85 83 Engine 13 | . 14 12 Treads 1 | . . 2 Wheel 25 | . 28 23 Device 7 | . . 10 Storage 11 | . 14 9 Energy Gun 23 | . 28 21 Peak Build Rating 7 | 6 6 7 Average Rating 5 | 4 6 5 On Entrance 4 | . 6 6 Naked Turns . | . . . Heaviest Build 14 | 13 13 14 Greatest Support 26 | 20 20 26 Greatest Overweight (x) . | . . . Average Overweight (x) . | . . . Largest Inventory Capacity 8 | 8 8 8 Average Capacity 7 | 7 8 7 Most Carried 7 | 5 7 7 Average Carried 4 | 3 5 5 Final Capacity 8 | 8 8 5 Final Carried 7 | 5 7 1 Class Distribution -------------------- 100% | Mutant Dominant Class ---------------- Mutant | -10/Materials Mutant | -10/Mines Resources | -11 -10 -10 ----------- Run | Yrd Mat Min Matter Collected 260 | 260 . . Remotely . | . . . Salvage Created 91 | 64 . 27 Parts 2 | 2 . . Haulers Intercepted . | . . . Recyclers Shooed . | . . . Parts Field Recycled . | . . . Retrieved Matter . | . . . Parts Self-Destructed . | . . . Prevented . | . . . Kills | -11 -10 -10 ------- Run | Yrd Mat Min Combat Hostiles Destroyed 3 | . . 3 Guns 2 | . . 2 Cannons 1 | . . 1 Classes Destroyed 2 | 1 . 1 Recycler 1 | 1 . . Assembled 3 | . . 3 Best Kill Streak 2 | 1 . 2 Combat Bots Only 2 | . . 2 Max Kills in Single Turn 1 | 1 . 1 Gunslinging . | . . . Exploded . | . . . Melee . | . . . Uniques/NPCs Destroyed . | . . . Combat | -11 -10 -10 -------- Run | Yrd Mat Min Hostile Shots Fired 68 | . 9 59 Missed 23 | . 4 19 Damage Taken 833 | . 56 777 Core 256 | . . 256 Absorbed by Shields . | . . . Core Remaining (%) 100 | 100 . . Volleys Fired 13 | 2 . 11 Largest 2 | 2 . 2 Hottest 140 | 90 . 140 Shots Fired 26 | 4 . 22 Gun 23 | 4 . 19 Cannon . | . . . Launcher . | . . . Special 3 | . . 3 Kinetic . | . . . Thermal 26 | 4 . 22 Explosive . | . . . Electromagnetic . | . . . Robot Hit Streak 4 | 2 . 4 Robot Miss Streak 5 | 1 . 5 Penetration Max . | . . . Secondary Targets 1 | . . 1 Max Gunslinging Chain 1 | . . 1 Shots Hit Robots 11 | 2 . 9 Core Hits 10 | 2 . 8 Critical Kills . | . . . Critical Parts Destroyed . | . . . Critical Strikes 1 | . . 1 Burn 1 | . . 1 Melee Attacks . | . . . Impact . | . . . Slashing . | . . . Piercing . | . . . Sneak Attacks . | . . . Combat Hostiles . | . . . Follow-up Attacks . | . . . Damage Inflicted 174 | 22 . 152 Guns 150 | 22 . 128 Cannons . | . . . Explosions . | . . . Melee . | . . . Ramming . | . . . Kinetic . | . . . Thermal 174 | 22 . 152 Explosive . | . . . Electromagnetic . | . . . Impact . | . . . Slashing . | . . . Piercing . | . . . Highest Corruption 5 | . . 5 Average Corruption 5 | . . 5 Corruption Purged . | . . . Corruption Blocked . | . . . Effects 2 | . . 2 Matter Fused 1 | . . 1 Data Loss (minor) 1 | . . 1 Overload Shots . | . . . Overflow Damage . | . . . Projectiles . | . . . Explosions . | . . . Melee . | . . . Knockbacks . | . . . Impact . | . . . Kinetic . | . . . Secondary . | . . . Self-Inflicted Damage . | . . . Shots . | . . . Rammed . | . . . Targets Rammed . | . . . Kicked . | . . . Crushed . | . . . Highest Temperature 200 | 80 7 200 Average Temperature 76 | 45 7 83 Received Heat Transfer 48 | . 39 9 Siege Activations . | . . . Robots Corrupted . | . . . Combat Hostiles . | . . . Parts Fried . | . . . Impact Corruptions . | . . . Robots Melted . | . . . Combat Hostiles . | . . . Parts Melted 1 | 1 . . Heat Transferred 521 | 62 . 459 Parts Sabotaged . | . . . Parts Stolen . | . . . Parts Stripped . | . . . Power Chain Reactions . | . . . Alert | -11 -10 -10 ------- Run | Yrd Mat Min Peak Influence 64 | 5 64 39 Initial 24 | . 3 24 Average 14 | 2 19 19 Maximum Alert Level . | . . . Low Security (%) 100 | 100 100 100 Level 1 . | . . . Level 2 . | . . . Level 3 . | . . . Level 4 . | . . . Level 5 . | . . . High Security . | . . . Max Security . | . . . Squads Dispatched 1 | . 1 . Investigation . | . . . Extermination . | . . . Reinforcement 1 | . 1 . Assault . | . . . Garrison . | . . . Intercept . | . . . Searches Triggered . | . . . Construction Impeded . | . . . Haulers Reinforced . | . . . Active Scanning Responses . | . . . Cargo Convoy Interrupts . | . . . Stealth | -11 -10 -10 --------- Run | Yrd Mat Min Distress Signals . | . . . Communications Jammed . | . . . Distress Signals . | . . . Times Spotted 20 | . 7 13 Peak Tracking Total 7 | . 7 7 Tactical Retreats 1 | . . 1 Traps | -11 -10 -10 ------- Run | Yrd Mat Min Traps Triggered . | . . . Indirectly . | . . . Trap Hack Attempts . | . . . Triggered . | . . . Disarmed . | . . . Reprogrammed . | . . . Reused . | . . . Traps Extracted . | . . . Installed . | . . . Triggered . | . . . Machines | -11 -10 -10 ---------- Run | Yrd Mat Min Machines Disabled 1 | . . 1 Max in Single Turn 1 | . . 1 Machines Repaired . | . . . Machines Dismantled . | . . . Machines Sabotaged . | . . . Overloaded Fab Kills . | . . . Hacking | -11 -10 -10 --------- Run | Yrd Mat Min Machines Accessed 2 | . 2 . Terminals 2 | . 2 . Fabricators . | . . . Repair Stations . | . . . Recycling Units . | . . . Scanalyzers . | . . . Garrison Access . | . . . Total Hacks 5 | . 5 . Successful 4 | . 4 . Failed 1 | . 1 . Catastrophic . | . . . Database Lockouts . | . . . Manual 2 | . 2 . Terminals 5 | . 5 . Fabricators . | . . . Repair Stations . | . . . Recycling Units . | . . . Scanalyzers . | . . . Garrison Access . | . . . Terminal Hacks 2 | . 2 . Prototype ID Bank 1 | . 1 . Branch Access Points 1 | . 1 . Fabricator Hacks . | . . . Repair Station Hacks . | . . . Recycling Unit Hacks . | . . . Scanalyzer . | . . . Garrison Access Hacks . | . . . Unauthorized Hacks 2 | . 2 . Terminals 2 | . 2 . Botnet 2 | . 2 . Fabricators . | . . . Repair Stations . | . . . Recycling Units . | . . . Scanalyzers . | . . . Garrison Access . | . . . Data Cores Recovered . | . . . Used . | . . . Hacking Detections 2 | . 2 . Full Trace Events . | . . . Feedback Events . | . . . Feedback Blocked . | . . . Robot Schematics Acquired . | . . . Robots Built . | . . . Authchips . | . . . Time . | . . . Total Robot Build Rating . | . . . Part Schematics Acquired . | . . . Parts Built . | . . . Authchips . | . . . Time . | . . . Total Part Build Rating . | . . . Parts Repaired . | . . . Time . | . . . Parts Recycled . | . . . Recycled Matter . | . . . Retrieved Matter . | . . . Retrieved Components . | . . . Parts Scanalyzed . | . . . Part Schematics Acquired . | . . . Parts Damaged . | . . . Bothacking | -11 -10 -10 ------------ Run | Yrd Mat Min Used RIF Installer . | . . . Robots Hacked . | . . . Non-combat . | . . . Combat . | . . . Robot Hacks Applied . | . . . Relay Couplers Released . | . . . Fabnet Peak Effective % . | . . . Robots Rewired . | . . . Allies Hacked . | . . . Hacks Repelled . | . . . Allies | -11 -10 -10 -------- Run | Yrd Mat Min Total Allies . | . . . Largest Group . | . . . Highest-Rated Group . | . . . Highest-Rated Ally . | . . . Total Orders . | . . . Ally Attacks . | . . . Total Damage . | . . . Kills . | . . . Allies Corrupted . | . . . Allies Melted . | . . . Intel | -11 -10 -10 ------- Run | Yrd Mat Min Robot Analysis Total . | . . . Derelict Logs Recovered 1 | . . 1 Drone Launches . | . . . Drone Recoveries . | . . . Exploration | -11 -10 -10 ------------- Run | Yrd Mat Min Turns Passed 261 | 67 71 123 Spaces Moved 232 | 57 85 90 Core 4 | 4 . . Treads . | . . . Legs . | . . . Wheels 228 | 53 85 90 Hover . | . . . Flight . | . . . Fastest Speed 50 | 50 80 80 Average Speed 81 | 77 80 85 Slowest Speed 100 | 80 80 100 Overloaded Moves . | . . . Propulsion Burnouts . | . . . Robots Hopped . | . . . Cave-ins Triggered . | . . . Exploration Rate (%) 16 | 5 23 22 Regions Visited 2 Branch Regions 1 Pre-discovered Areas 1 | . . 1 Known Exits Taken 1 | . 1 . Unknown Exits Taken 1 | 1 . . Scrap Searched . | . . . Spaces Dug . | . . . Terrain Destroyed . | . . . Melee . | . . . Projectile . | . . . AOE . | . . . Terrain Rammed . | . . . Walls Destroyed . | . . . Machines Disabled . | . . . Actions | -11 -10 -10 --------- Run | Yrd Mat Min Total 271 | 75 87 109 Wait 3 | . 1 2 Move 230 | 56 84 90 Hop . | . . . Pick Up 13 | 11 2 . Fast Attach . | . . . Attach 12 | 6 . 6 Detach . | . . . Swap . | . . . Drop . | . . . Fire 13 | 2 . 11 Melee . | . . . Ram . | . . . Kick . | . . . Crush . | . . . Escape Stasis . | . . . Rewire . | . . . Trap . | . . . Miscellaneous . | . . . Route ------- -11/Scrapyard -10/Materials (discovered 2 exits: *Min x2) -10/Mines History --------- Turn | Location | Event 2 | -11/Scrapyard | Met Revision 17 19 | -11/Scrapyard | Discovered new exit (range 16) 68 | -11/Scrapyard | Entered Materials 92 | -10/Materials | Identified exit to Mines 139 | -10/Materials | Entered Mines 145 | -10/Mines | Assembled infested the area 228 | -10/Mines | Core integrity fell below 50% 228 | -10/Mines | Learned location of Zion (-7) 258 | -10/Mines | Core integrity fell below 20% 262 | -10/Mines | Destroyed by as-33251 with Assembled Blade Last Messages --------------- 00196_ as-03335 destroyed. 00203_ Ion Engine destroyed. 00203_ Wheel destroyed. 00213_ as-33251 suffers critical hit (Burn). 00220_ Med. Laser destroyed. 00220_ Sml. Laser destroyed. 00224_ Sml. Storage Unit destroyed. 00228_ Acquired derelict log, extracted data. World map updated: -7/Zion. 00231_ Wheel destroyed. 00231_ System corrupted by crushing effect (+5). 00232_ System corrupted: Matter fused (-7). 00238_ as-33251 sneak attacks. 00238_ G-47 Trooper destroyed. 00244_ G-34 Mercenary destroyed. 00249_ as-03412 destroyed. 00254_ Laser Drill disabled. 00256_ Com. Wheel destroyed. 00258_ System corrupted: Component data lost. 00259_ Mining Laser destroyed. Map ----- +----------------------------------------------------+ | | | | | | | | | | | | | | | | | | | | | | | | | | | | | | | | | | | ????????????????????????????????????????? | | ????????????????????????????????????????? | | ????????????????????????????????????????? | | ????????????????????????############????? | | ????????????????????????# ???? | | ????????????????????????# ???? | | ????????????????????????# ???? | | ????????????????????????#a""" """ """ ?#? | | ????????????????????????#@""" """ """ #? | | ????????????????????????#a ""a""" """ #? | | ????????????????????????# a !%= #? | | ????????????????????????# """ """ """ #? | | ????????????????????????# """ """ """ #? | | ????????????????????????# """ """ """ #? | | ????????????????????????# !%=* #? | | ????????????????????????######### #####?? | | ????????????????????????????????# #####?? | | ????????????????????????????????# #?? | | ????????????????????????????????#### #?? | | ???????????????????????????????????# #?? | | ???????????????????????????????????# #?? | | ???????????????????????????????????# #?? | | ???????????????????????????????????# #?? | | ???????????????????????????????????# #?? | | ???????????????????????????????????# #?? | | ???????????????????????????????????# #?? | | ???????????????????????????????????# #?? | | ???????????????????????????????????# #?? | | ????????????????????? ? ???# ##### #?? | | ???????????????????? ???# #?? | | ???????????????????? ???####### #?? | | ????????????????????# ???????## #?? | | ????????????????????# ??????## #?? | +----------------------------------------------------+ Best States ------------- Heat Dissipation 25 Energy Generation 10 Energy Capacity 250 Matter Stores 300 Matter Capacity 300 Sight Range 16 Terrain Scan Density 10 Evasion (%) 44 Recoil Reduction 1 Item Schematics ----------------- None Robot Schematics ------------------ None Fabricated ------------ Nothing Alien Tech Used ----------------- None Achievements -------------- None Challenges ------------ None Game ------ Seed GrapheneAdvancedDetector Manual? 0 Play Time 00:06:37 Cumulative 248.5 hours Start 2024.10.16 @ 04:39:52 End 2024.10.16 @ 04:45:52 Sessions 1 Manual Loads 0 Difficulty Rogue Special Mode None Game No. 193 Rogue 184 Adventurer 9 Explorer 0 Win Type - Total 1 Types 1/0/0/0/0/0/0/0/0 Lore% 81 Gallery% 75 Achievement% 62 Wizard Run 0 Options --------- Layout 1 ASCII 0 Keyboard 0 Movement Numpad Keybinds 0 Fullscreen 1 Font 24/Smallcaps Map View 50x35 Zoom Use 0% Tactical HUD 1 Map Filters NONE Filters NONE Steam 1 RUN: 9f318186-9a89-4d89-8676-d5f6f97059ce